Cogmind - Beta 14 *** ADVENTURER MODE // 2024.08.28 @ 23:12:34 Player: Mbreton Result: Destroyed by as-13587 with Assembled Rifle Performance ------------- Evolutions (1) 500 Regions Visited (4) 800 Robots Destroyed (58) 290 Value Destroyed (1612) 1612 Prototype IDs (9) 180 Alien Tech Used (0) 0 Bonus (0) 0 TOTAL SCORE: 3382 Bonus ------- None Cogmind --------- Core Integrity 0/400 Matter 212/300 Energy 96/100 System Corruption 2% Temperature Cool (1) Movement Treading (240) Ox1 Location -9/Mines Parts ------- > --- POWER (1) -------- (None) > --- PROPULSION (2) --- Light Treads Titanium Leg > --- UTILITY (4) ------ Large Storage Unit > --- WEAPON (2) ------- Heavy Hammer > --- INVENTORY (15) --- Ion Engine Heavy Ion Engine Light Nuclear Core Light Treads Huge Storage Unit Advanced Weight Redist. System Advanced Weight Redist. System Signal Interpreter Power Shielding Authchip [Weapon] Battle Cannon Rocket Launcher Peak State ------------ > --- POWER ------------ Light Nuclear Core > --- PROPULSION ------- Light Treads Light Treads > --- UTILITY ---------- Large Storage Unit Advanced Visual Processing Unit Targeting Computer Targeting Computer > --- WEAPON ----------- Assault Cannon Assault Cannon > --- INVENTORY -------- Ion Engine Heavy Ion Engine Light Nuclear Core Light Treads Light Treads Titanium Leg Huge Storage Unit Advanced Weight Redist. System Advanced Weight Redist. System Advanced Weight Redist. System Signal Interpreter Power Shielding Heavy Assault Rifle Rocket Launcher Heavy Hammer [Rating: 20] Favorites ----------- Power Light Nuclear Core Engine Light Ion Engine Power Core Light Nuclear Core Propulsion Light Treads Treads Light Treads Leg Aluminum Leg Utility Targeting Computer Device Terrain Scanner Storage Large Storage Unit Processor Targeting Computer Weapon Assault Cannon Energy Gun EM Pulse Gun Ballistic Gun Heavy Assault Rifle Ballistic Cannon Assault Cannon Impact Weapon Heavy Hammer Build | -11 -10 -10 -9 -9 ------- Run | Yrd Mat Min Mat Min Slots Evolved 2 | . . . 2 . Power . | . . . . . Propulsion . | . . . . . Utility 2 | . . . 2 . Weapon . | . . . . . Parts Attached 31 | 5 17 1 5 3 Power 5 | 1 3 1 . . Engine 4 | 1 3 . . . Core 1 | . . 1 . . Reactor . | . . . . . Propulsion 9 | 2 4 . 1 2 Treads 4 | . 2 . 1 1 Leg 5 | 2 2 . . 1 Wheel . | . . . . . Hover . | . . . . . Flight . | . . . . . Utility 7 | . 5 . 2 . Device 1 | . 1 . . . Storage 3 | . 3 . . . Processor 3 | . 1 . 2 . Hackware . | . . . . . Protection . | . . . . . Artifact . | . . . . . Weapon 10 | 2 5 . 2 1 Energy Gun 2 | 2 . . . . Energy Cannon . | . . . . . Ballistic Gun 5 | . 5 . . . Ballistic Cannon 2 | . . . 2 . Launcher . | . . . . . Special Weapon . | . . . . . Impact Weapon 1 | . . . . 1 Slashing Weapon . | . . . . . Piercing Weapon . | . . . . . Special Melee Weapon . | . . . . . Unidentified Prototypes 1 | . 1 . . . Parts Lost 11 | . 3 . . 8 Power 1 | . . . . 1 Propulsion 3 | . 1 . . 2 Utility 3 | . . . . 3 Weapon 4 | . 2 . . 2 Highest Loss Streak 8 | . 2 . . 8 To Critical Strikes . | . . . . . Average Slot Usage (%) 96 | . 89 100 98 96 Engine 3 | . 14 . . . Core 8 | . . 13 11 9 Treads 19 | . 10 28 22 20 Leg 3 | . 14 . . . Storage 10 | . 8 14 11 11 Processor 24 | . 11 14 32 31 Energy Gun 1 | . 4 . . . Ballistic Gun 9 | . 23 28 . . Ballistic Cannon 13 | . . . 21 20 Peak Build Rating 20 | 5 13 12 20 20 Average Rating 14 | 4 7 12 19 19 On Entrance 9 | . 5 12 12 20 Naked Turns . | . . . . . Heaviest Build 35 | 7 34 34 35 35 Greatest Support 40 | 20 40 40 40 40 Greatest Overweight (x) 7 | . 2 . . 7 Average Overweight (x) . | . . . . . Largest Inventory Capacity 25 | 5 25 15 15 15 Average Capacity 12 | 5 9 15 15 15 Most Carried 15 | 2 15 15 15 15 Average Carried 11 | . 8 15 14 14 Final Capacity 15 | 5 15 15 15 15 Final Carried 15 | 1 15 15 15 12 Class Distribution -------------------- 92% | Mutant 7% | Scavenger-Mutant Dominant Class ---------------- Mutant | -10/Materials Mutant | -10/Mines Mutant | -9/Materials Mutant | -9/Mines Resources | -11 -10 -10 -9 -9 ----------- Run | Yrd Mat Min Mat Min Matter Collected 1037 | 250 107 200 392 88 Remotely . | . . . . . Salvage Created 1629 | 45 381 216 812 175 Parts 124 | 3 35 12 65 9 Haulers Intercepted . | . . . . . Recyclers Shooed . | . . . . . Parts Field Recycled . | . . . . . Retrieved Matter . | . . . . . Parts Self-Destructed . | . . . . . Prevented . | . . . . . Kills | -11 -10 -10 -9 -9 ------- Run | Yrd Mat Min Mat Min Combat Hostiles Destroyed 56 | 1 14 7 22 12 Melee 2 | . . . . 2 Guns 20 | 1 12 7 . . Cannons 32 | . . . 22 10 AOE 2 | . 2 . . . Classes Destroyed 8 | 1 2 . 3 2 Worker 1 | . . . 1 . Operator 1 | . . . 1 . Watcher 6 | . 1 . 5 . Swarmer 18 | . 9 3 2 4 Grunt 22 | 1 5 4 12 . Sentry 8 | . . . 8 . Demolisher 2 | . . . . 2 Assembled 6 | . . . . 6 Best Kill Streak 8 | 1 5 3 4 8 Combat Bots Only 8 | 1 5 3 4 8 Max Kills in Single Turn 2 | 1 2 1 2 2 Gunslinging 1 | . 1 . . . Exploded 1 | . 1 . . . Melee 1 | . . . . 1 Uniques/NPCs Destroyed . | . . . . . Combat | -11 -10 -10 -9 -9 -------- Run | Yrd Mat Min Mat Min Hostile Shots Fired 265 | 4 69 24 63 105 Missed 70 | 1 11 5 23 30 Damage Taken 1853 | 25 441 157 318 912 Core 547 | 9 78 54 95 311 Absorbed by Shields . | . . . . . Ignored by Resistances 567 | 9 143 49 99 267 Regen/Repaired (Parts) 66 | . . . 66 . Core Remaining (%) 69 | 96 . 43 . . Volleys Fired 110 | 3 39 14 44 10 Largest 2 | 2 2 2 2 2 Hottest 88 | 80 80 46 88 88 Shots Fired 214 | 6 72 28 88 20 Gun 110 | 6 72 28 4 . Cannon 104 | . . . 84 20 Launcher . | . . . . . Special . | . . . . . Kinetic 184 | . 48 28 88 20 Thermal . | . . . . . Explosive . | . . . . . Electromagnetic 30 | 6 24 . . . Robot Hit Streak 46 | 2 15 13 46 14 Robot Miss Streak 4 | 1 4 1 3 4 Penetration Max . | . . . . . Secondary Targets 6 | . 5 1 . . Max Gunslinging Chain 1 | . 1 1 . . Shots Hit Robots 162 | 4 52 24 66 16 Core Hits 77 | 2 20 12 31 12 Critical Kills . | . . . . . Critical Parts Destroyed . | . . . . . Critical Strikes 7 | . . . 4 3 Blast 7 | . . . 4 3 Melee Attacks 2 | . . . . 2 Impact 2 | . . . . 2 Slashing . | . . . . . Piercing . | . . . . . Sneak Attacks . | . . . . . Combat Hostiles . | . . . . . Follow-up Attacks . | . . . . . Damage Inflicted 3117 | 53 629 350 1580 505 Guns 920 | 53 479 350 38 . Cannons 1923 | . . . 1542 381 Explosions 150 | . 150 . . . Melee 123 | . . . . 123 Ramming 1 | . . . . 1 Kinetic 2626 | . 315 350 1580 381 Thermal 150 | . 150 . . . Explosive . | . . . . . Electromagnetic 217 | 53 164 . . . Impact 123 | . . . . 123 Slashing . | . . . . . Piercing . | . . . . . Highest Corruption 2 | . . . . 2 Average Corruption 1 | . . . . 1 Corruption Purged . | . . . . . Corruption Blocked . | . . . . . Overload Shots . | . . . . . Overflow Damage 117 | . 37 . 69 11 Projectiles 80 | . . . 69 11 Explosions 37 | . 37 . . . Melee . | . . . . . Knockbacks 17 | . . . 14 3 Impact . | . . . . . Kinetic 17 | . . . 14 3 Secondary . | . . . . . Self-Inflicted Damage 30 | . 30 . . . Shots 1 | . 1 . . . Rammed 1 | . . . . 1 Targets Rammed 1 | . . . . 1 Kicked . | . . . . . Crushed . | . . . . . Highest Temperature 141 | 72 90 46 138 141 Average Temperature 36 | 39 27 28 35 58 Received Heat Transfer 716 | 18 132 105 141 320 Siege Activations . | . . . . . Robots Corrupted . | . . . . . Combat Hostiles . | . . . . . Parts Fried . | . . . . . Impact Corruptions . | . . . . . Robots Melted . | . . . . . Combat Hostiles . | . . . . . Parts Melted . | . . . . . Heat Transferred 150 | . 150 . . . Parts Sabotaged . | . . . . . Parts Stolen . | . . . . . Parts Stripped . | . . . . . Power Chain Reactions 3 | . 3 . . . Alert | -11 -10 -10 -9 -9 ------- Run | Yrd Mat Min Mat Min Peak Influence 361 | 20 361 209 274 167 Initial 68 | . . 24 68 35 Average 100 | 11 152 122 91 103 Maximum Alert Level 1 | . 1 1 1 . Low Security (%) 87 | 100 62 87 94 100 Level 1 12 | . 37 12 5 . Level 2 . | . . . . . Level 3 . | . . . . . Level 4 . | . . . . . Level 5 . | . . . . . High Security . | . . . . . Max Security . | . . . . . Squads Dispatched 5 | . 2 . 3 . Investigation 3 | . 2 . 1 . Extermination . | . . . . . Reinforcement 2 | . . . 2 . Assault . | . . . . . Garrison . | . . . . . Intercept . | . . . . . Searches Triggered . | . . . . . Construction Impeded . | . . . . . Haulers Reinforced . | . . . . . Active Scanning Responses . | . . . . . Cargo Convoy Interrupts . | . . . . . Stealth | -11 -10 -10 -9 -9 --------- Run | Yrd Mat Min Mat Min Distress Signals 2 | . 1 . 1 . Communications Jammed . | . . . . . Distress Signals . | . . . . . Times Spotted 89 | 1 23 8 32 25 Peak Tracking Total 13 | 1 6 3 4 13 Tactical Retreats 5 | . 3 1 . 1 Traps | -11 -10 -10 -9 -9 ------- Run | Yrd Mat Min Mat Min Traps Triggered 2 | . 2 . . . Indirectly . | . . . . . Trap Hack Attempts . | . . . . . Triggered . | . . . . . Disarmed 6 | . 6 . . . Reprogrammed . | . . . . . Reused . | . . . . . Traps Extracted . | . . . . . Installed . | . . . . . Triggered . | . . . . . Machines | -11 -10 -10 -9 -9 ---------- Run | Yrd Mat Min Mat Min Machines Disabled 4 | . 2 . 2 . Max in Single Turn 1 | . 1 . 1 . Machines Repaired . | . . . . . Machines Dismantled . | . . . . . Machines Sabotaged . | . . . . . Overloaded Fab Kills . | . . . . . Hacking | -11 -10 -10 -9 -9 --------- Run | Yrd Mat Min Mat Min Machines Accessed 15 | . 6 . 9 . Terminals 11 | . 5 . 6 . Fabricators . | . . . . . Repair Stations 1 | . . . 1 . Recycling Units 3 | . 1 . 2 . Scanalyzers . | . . . . . Garrison Access . | . . . . . Total Hacks 57 | . 20 . 37 . Successful 29 | . 8 . 21 . Failed 28 | . 12 . 16 . Catastrophic 2 | . 1 . 1 . Database Lockouts . | . . . . . Manual . | . . . . . Terminals 42 | . 17 . 25 . Fabricators . | . . . . . Repair Stations 5 | . . . 5 . Recycling Units 10 | . 3 . 7 . Scanalyzers . | . . . . . Garrison Access . | . . . . . Terminal Hacks 17 | . 5 . 12 . Record 6 | . 2 . 4 . Prototype ID Bank 4 | . 2 . 2 . Alert Level 1 | . . . 1 . Unreport Threat 1 | . . . 1 . Disarm Traps 1 | . 1 . . . Surveillance Status 1 | . . . 1 . Patrol Status 1 | . . . 1 . Hauler Manifests 1 | . . . 1 . Registered Components 1 | . . . 1 . Fabricator Hacks . | . . . . . Repair Station Hacks 4 | . . . 4 . Scan Component 2 | . . . 2 . Repair 1 | . . . 1 . Refit 1 | . . . 1 . Recycling Unit Hacks 8 | . 3 . 5 . Recycle Component 1 | . 1 . . . Process 2 | . 1 . 1 . Report Inventory 2 | . . . 2 . Retrieve Matter 1 | . . . 1 . Retrieve Components 2 | . 1 . 1 . Scanalyzer . | . . . . . Garrison Access Hacks . | . . . . . Unauthorized Hacks . | . . . . . Terminals . | . . . . . Fabricators . | . . . . . Repair Stations . | . . . . . Recycling Units . | . . . . . Scanalyzers . | . . . . . Garrison Access . | . . . . . Data Cores Recovered . | . . . . . Used . | . . . . . Hacking Detections 14 | . 6 . 8 . Full Trace Events 5 | . 3 . 2 . Feedback Events . | . . . . . Feedback Blocked . | . . . . . Robot Schematics Acquired . | . . . . . Robots Built . | . . . . . Authchips . | . . . . . Time . | . . . . . Total Robot Build Rating . | . . . . . Part Schematics Acquired . | . . . . . Parts Built . | . . . . . Authchips . | . . . . . Time . | . . . . . Total Part Build Rating . | . . . . . Parts Repaired 1 | . . . 1 . Time 26 | . . . 26 . Parts Recycled 1 | . 1 . . . Recycled Matter 284 | . 116 . 168 . Retrieved Matter . | . . . . . Retrieved Components 9 | . . . 9 . Parts Scanalyzed . | . . . . . Part Schematics Acquired . | . . . . . Parts Damaged . | . . . . . Bothacking | -11 -10 -10 -9 -9 ------------ Run | Yrd Mat Min Mat Min Used RIF Installer . | . . . . . Robots Hacked . | . . . . . Non-combat . | . . . . . Combat . | . . . . . Robot Hacks Applied . | . . . . . Relay Couplers Released . | . . . . . Fabnet Peak Effective % . | . . . . . Robots Rewired . | . . . . . Allies Hacked . | . . . . . Hacks Repelled . | . . . . . Allies | -11 -10 -10 -9 -9 -------- Run | Yrd Mat Min Mat Min Total Allies . | . . . . . Largest Group . | . . . . . Highest-Rated Group . | . . . . . Highest-Rated Ally . | . . . . . Total Orders . | . . . . . Ally Attacks . | . . . . . Total Damage . | . . . . . Kills . | . . . . . Allies Corrupted . | . . . . . Allies Melted . | . . . . . Intel | -11 -10 -10 -9 -9 ------- Run | Yrd Mat Min Mat Min Robot Analysis Total . | . . . . . Derelict Logs Recovered 1 | . . 1 . . Drone Launches . | . . . . . Drone Recoveries . | . . . . . Exploration | -11 -10 -10 -9 -9 ------------- Run | Yrd Mat Min Mat Min Turns Passed 4538 | 545 1075 384 2116 418 Spaces Moved 2269 | 150 591 211 1084 233 Core 18 | 17 . . . 1 Treads 1764 | . 240 211 1084 229 Legs 487 | 133 351 . . 3 Wheels . | . . . . . Hover . | . . . . . Flight . | . . . . . Fastest Speed 50 | 50 120 160 160 160 Average Speed 153 | 112 145 160 160 162 Slowest Speed 400 | 120 260 160 160 400 Overloaded Moves . | . . . . . Propulsion Burnouts . | . . . . . Robots Hopped . | . . . . . Cave-ins Triggered . | . . . . . Exploration Rate (%) 57 | 20 81 64 72 48 Regions Visited 4 Branch Regions 2 Pre-discovered Areas 1 | . . 1 . . Known Exits Taken . | . . . . . Unknown Exits Taken 4 | 1 1 1 1 . Scrap Searched 2 | . . 1 . 1 Spaces Dug . | . . . . . Terrain Destroyed 18 | . 9 . 7 2 Melee . | . . . . . Projectile 9 | . . . 7 2 AOE 9 | . 9 . . . Terrain Rammed . | . . . . . Walls Destroyed . | . . . . . Machines Disabled . | . . . . . Actions | -11 -10 -10 -9 -9 --------- Run | Yrd Mat Min Mat Min Total 3128 | 521 741 230 1385 251 Wait 637 | 358 57 3 219 . Move 2265 | 149 590 210 1083 233 Hop . | . . . . . Pick Up 55 | 6 29 1 18 1 Fast Attach . | . . . . . Attach 18 | 5 8 . 2 3 Detach 1 | . 1 . . . Swap 13 | . 9 1 3 . Drop 26 | . 8 1 16 1 Fire 110 | 3 39 14 44 10 Melee 2 | . . . . 2 Ram . | . . . . . Kick . | . . . . . Crush 1 | . . . . 1 Escape Stasis . | . . . . . Rewire . | . . . . . Trap . | . . . . . Miscellaneous . | . . . . . Route ------- -11/Scrapyard -10/Materials (discovered 5 exits: *Mat x3 / [*Min x2]) -10/Mines (discovered 2 exits: *Mat x2) -9/Materials (discovered 3 exits: [*Mat x2] / [*Min]) -9/Mines (discovered 1 exit: [*Exi]) History --------- Turn | Location | Event 2 | -11/Scrapyard | Met Revision 17 68 | -11/Scrapyard | Discovered new exit (range 8) 546 | -11/Scrapyard | Entered Materials 547 | -10/Materials | Build established: Mutant 912 | -10/Materials | Discovered new exit (range 16) 1056 | -10/Materials | Discovered new exit (range 8) 1230 | -10/Materials | Discovered new exit (range 15) 1367 | -10/Materials | Discovered new exit (range 8) 1571 | -10/Materials | Discovered new exit (range 15) 1621 | -10/Materials | Entered Mines 1636 | -10/Mines | Core integrity fell below 50% 1779 | -10/Mines | Discovered new exit (range 5) 1780 | -10/Mines | Learned location of Storage (-7) 1880 | -10/Mines | Learned Materials trap positions 1939 | -10/Mines | Discovered new exit (range 8) 2005 | -10/Mines | Entered Materials 2005 | -9/Materials | Evolved 2 slots: Utility x2 2006 | -9/Materials | Loaded intel: 16 trap records 2891 | -9/Materials | Discovered new exit (range 13) 3456 | -9/Materials | Discovered new exit (range 5) 3710 | -9/Materials | Discovered new exit (range 17) 4043 | -9/Materials | Repaired Lgt. Treads 4121 | -9/Materials | Entered Mines 4182 | -9/Mines | A weapon hastily lodged in a ceiling crevice suddenly fell to the ground 4390 | -9/Mines | Deemed a non-threat by the Exiles lab entrance 4390 | -9/Mines | Discovered new exit (range 5) 4483 | -9/Mines | Assembled infested the area 4519 | -9/Mines | Core integrity fell below 50% 4528 | -9/Mines | Core integrity fell below 20% 4539 | -9/Mines | Destroyed by as-13587 with Assembled Rifle Last Messages --------------- as-96698 knocked back. Assault Cannon destroyed. as-96698 destroyed. Knocked back. as-24186 destroyed. as-54539 destroyed. Acquired 11 matter. K-01 Serf collects debris. Targeting Computer destroyed. K-01 Serf collects debris. Acquired 11 matter. U-05 Engineer lays Concrete. The unstable cave ceiling collapses. U-05 Engineer lays Concrete. K-01 Serf collects debris. U-05 Engineer lays Concrete. The unstable cave ceiling collapses. U-05 Engineer builds a Wall. K-01 Serf collects debris. as-32517 destroyed. Map ----- +----------------------------------------------------+ | ????????????? #????????? ##????????????????? | | ?????????????# ##???????? #????????????????? | | ?????????????# ##??????? ?????????????????? | | ?????????????# ####???# #?????????????????? | | ?????????????# ##?? ??????????????????? | | ?????????????# #?? #??????????????????? | | ############## #?## #??????????????????? | | # #??# ##?????????????????? | | # #?## #?????????????????? | | # ############ ### #?????????????????? | | #??????????### #?????????????????? | | # #????????????## #?????????????????? | | # #?###?????????# ##??#####??????????? | | ## ##???????# ## #####??# #####??????? | | # #??????# ### ##????## ???????? | | ### #?????# ###?# #???## ????????? | | ##?????# ###### #???# " #?????????? | | ##??????# #???# "%"#?????????? | | ##??????# #??? "#??????????? | | #####?????# ###### #??? =% #???????????? | | #????????# #?????# #???# !%=! #???????????? | | #????????# ??????# #?### % ##??????????? | | #????????## ??????# #?# ##?????????? | | #?????????## ???????# #?## #?????????? | | #??????????###???????# r###u #?????????? | | #????????????????????# @ % #??????????? | | ##????????????????????# a ##??????????? | | ??????????????????????## ## a ##???????????? | | ???????????????????????# ## k aa ##????????????? | | ??????????????????????? ### %%%;#????????????? | | ??????????????????????## #?# # % ??????????? | | ??????????????????????? #?# #% %;####?????????? | | ??????????????????????? #?####### #????????????? | | ??????????????????????? ???????? #???????????? | | ###########??????????? ????????? #???????????? | | *% #??????????? ??????????##???????????? | | = #??????????? ???????????????????????? | | [= #??????????" #???????????????????????? | | """%""" #??????????" #????????????????????????? | | """%""" #?????????? ? ?????????????????????????? | | """ """ #?????????? ? ?????????????????????????? | | #?????????? ? ?????????????????????????? | | ###########?????????? ? ?????????????????????????? | | ??????????????????????? ?????????????????????????? | | ???????????????????????#?????????????????????????? | | ?????????????????????????????????????????????????? | | ?????????????????????????????????????????????????? | | ?????????????????????????????????????????????????? | | | | | +----------------------------------------------------+ Best States ------------- Heat Dissipation 28 Energy Generation 14 Energy Capacity 375 Matter Stores 300 Matter Capacity 300 Sight Range 20 Terrain Scan Range 14 Terrain Scan Density 10 Resistance: KI 20 Resistance: TH 20 Resistance: EX 20 Resistance: EM 20 Resistance: I 20 Resistance: S 20 Resistance: P 20 Evasion (%) 55 Targeting Accuracy 10 Recoil Reduction 2 Offensive Hacking 10 Authchip Count 1 Item Schematics ----------------- None Robot Schematics ------------------ None Fabricated ------------ Nothing Alien Tech Used ----------------- None Achievements -------------- Everything Is Under Control Shopping List Challenges ------------ None Game ------ Seed NovaLongswordFemtoactuators Manual? 0 Play Time 00:57:28 Cumulative 3.9 hours Start 2024.08.28 @ 22:13:36 End 2024.08.28 @ 23:12:34 Sessions 1 Manual Loads 0 Difficulty Adventurer Special Mode None Game No. 3 Rogue 0 Adventurer 3 Explorer 0 Win Type - Total 0 Types 0/0/0/0/0/0/0/0/0 Lore% 2 Gallery% 6 Achievement% 8 Wizard Run 0 Options --------- Layout 1 ASCII 0 Keyboard 0 Movement Mouse Keybinds 0 Fullscreen 1 Font 24/Smallcaps Map View 25x17 Zoom Use 87% Tactical HUD 0 Map Filters NONE Filters NONE Steam 1 RUN: f0b2eed9-3d42-4222-80a9-e9b4e86f0e71